[Event "Marcel Invitational Chess-ch 2022"]
[Site "Dhaka"]
[Date "2022.04.20"]
[Round "2.2"]
[White "Anata, Choudhury"]
[Black "Bhuiyan, Golam Mostafa"]
[Result "1-0"]
[ECO "B90"]
[WhiteElo "2170"]
[BlackElo "2104"]
[Annotator "TA"]
[PlyCount "115"]
[EventDate "2022.04.18"]
[EventCountry "BAN"]
[SourceTitle "playchess.com"]
[Source "ChessBase"]
[SourceQuality "1"]
[TimeControl "5400+30"]

{[%evp 11,115,10,8,0,13,6,19,10,17,11,27,15,41,9,21,0,20,19,20,31,29,27,45,41,52,54,48,45,56,35,53,32,72,69,69,70,66,67,71,64,64,64,70,70,67,45,60,60,60,45,53,45,53,0,60,45,60,6,60,21,18,6,65,60,65,60,60,60,60,53,53,6,6,0,0,53,53,53,53,53,53,53,53,53,53,53,53,53,53,53,53,53,53,53,53,53,73,108,969,941,954,795,2080,1591,29978,1995]} 1. e4 {[%emt 0:07:43]} c5 {[%emt 0:00:02]} 2. Nf3 {[%emt 0:00:17]} d6 {[%emt 0:00:01]} 3. d4 {[%emt 0:00:10]} cxd4 {[%emt 0:00:00]} 4. Nxd4 {[%emt 0:00:10]} Nf6 {[%emt 0:00:01]} 5. Nc3 {[%emt 0:00:17]} a6 {[%emt 0:00:24]} 6. h3 {[%emt 0:00:18]} e5 {[%emt 0:00:15] 6...e5 scores better than 6...e6.} 7. Nf3 {[%emt 0:00:16] B90: Sicilian Najdorf: Unusual White 6th moves, 6 Be3 Ng4 and 6 Be3 e5.} h6 {[%emt 0:00:18]} 8. Bc4 {[%emt 0:00:36]} Be7 {[%emt 0:00:27]} 9. O-O {[%emt 0:00:34] The position is equal.} Nc6 {[%emt 0:00:18][%cal Bb8c6,Bc6a5,Ba5c4][%mdl 32]} 10. a4 {[%emt 0:07:02]} O-O {[%emt 0:00:38]} 11. Qe2 {[%emt 0:01:12]} Be6 {[%emt 0:00:16]} 12. Rd1 {[%emt 0:00:28] [#]} Qc7 $146 {[%emt 0:00:37][%cal Oc6d4]} ({Predecessor:} 12... Rc8 13. Ba2 Qc7 14. Be3 Nb4 15. Bb3 Bc4 16. Qd2 Qc6 17. Nd5 Nbxd5 18. exd5 Nxd5 19. Bxc4 Nxe3 20. Bxf7+ Rxf7 21. Qxe3 Qxc2 {1-0 (72) Demchenko,A (2651)-Pacheco Lugo,A (2127) Chess.com INT 2021}) 13. Bb3 {[%emt 0:08:11]} Na5 {[%emt 1:33:43]} 14. Nd5 {[%emt 0:00:28]} Nxd5 {[%emt 0:00:21]} 15. Bxd5 {[%emt 1:10:18]} Rac8 {[%emt 0:00:14]} 16. Ne1 {[%emt 0:15:11]} Nc4 {[%emt 0:01:32]} 17. b3 {[%emt 0:02:15]} Nb6 {[%emt 0:00:16]} 18. Bxe6 $1 {[%emt 0:00:11]} fxe6 {[%emt 0:00:02]} 19. c4 {[%emt 0:00:46]} Nd7 {[%emt 0:00:08]} 20. Be3 {[%emt 0:54:16]} Nc5 {[%emt 0:01:20]} 21. Bxc5 {[%emt 0:16:19]} dxc5 {[%emt 0:03:15]} 22. Rd3 {[%emt 0:00:55]} Rcd8 {[%emt 0:01:07]} 23. Rad1 {[%emt 0:00:24]} Rxd3 {[%emt 0:02:19]} 24. Rxd3 {[%emt 0:01:34]} Rd8 {[%emt 0:00:13]} 25. g3 {[%emt 0:05:07]} Bf6 {[%emt 0:08:40]} 26. Kg2 {[%emt 0:01:04]} Kf7 {[%emt 0:00:13]} 27. h4 {[%emt 0:00:43]} Rd6 {[%emt 0:00:19]} 28. h5 {[%emt 0:16:35]} (28. Kf3 {is more complex.} Ke7 29. Qd2 Rd4 30. Nc2) 28... Qd7 {[%emt 0:00:21]} 29. Rxd6 {[%emt 0:00:18]} Qxd6 {[%emt 0:00:01]} 30. Nf3 {[%emt 0:00:32]} Ke7 {[%emt 0:01:31]} 31. Nh2 {[%emt 0:02:10]} Qd4 {[%emt 0:04:46]} 32. Nf3 {[%emt 0:14:39]} Qd6 {[%emt 0:00:44]} 33. Qe3 {[%emt 0:02:08]} Kd7 {[%emt 0:01:24]} 34. Qd2 {[%emt 0:03:17]} (34. Qc3 $14) 34... Kc6 {[%emt 0:03:22]} ({Better is} 34... Qxd2 $11 35. Nxd2 Bd8) 35. Qxd6+ {[%emt 0:01:46]} Kxd6 $14 {[%emt 0:01:28][%mdl 4096] Endgame KB-KN} 36. Ne1 {[%emt 0:00:18]} Kc6 {[%emt 0:02:26]} (36... Bg5 $11) 37. Nd3 {[%emt 0:00:37]} b6 {[%emt 0:02:22]} 38. Kf3 {[%emt 0:00:47]} Kd6 {[%emt 0:00:35]} 39. Kg4 {[%emt 0:00:50][%cal Oa4a5] Black must now prevent a5!} a5 {[%emt 0:02:52]} 40. f4 {[%emt 0:00:32]} exf4 {[%emt 0:00:36]} 41. gxf4 {[%emt 0:00:09]} Bd4 {[%emt 0:01:08]} 42. e5+ {[%emt 0:00:27]} Ke7 $1 {[%emt 0:00:11]} 43. f5 {[%emt 0:00:13]} (43. Kf3 $11) 43... Bc3 {[%emt 0:11:16]} 44. Kf4 {[%emt 0:00:58]} Bd2+ {[%emt 0:01:39]} 45. Ke4 {[%emt 0:00:17]} Kf7 $1 {[%emt 0:01:28]} 46. Nf2 $1 {[%emt 0:02:09]} Bg5 {[%emt 0:04:37]} 47. Nh3 $1 {[%emt 0:00:13]} Bd2 $1 {[%emt 0:01:06]} 48. Ng1 $1 {[%emt 0:00:12]} Bc3 {[%emt 0:00:44]} 49. Ne2 {[%emt 0:00:11]} Bd2 {[%emt 0:00:08]} 50. Ng3 $1 {[%emt 0:00:11] Hoping for fxe6+.} Bc3 $1 {[%emt 0:00:28]} 51. Nf1 $1 {[%emt 0:04:23]} Bd4 $1 {[%emt 0:00:15]} 52. Nd2 {[%emt 0:00:36]} Bc3 {[%emt 0:00:46]} 53. Nf3 {[%emt 0:00:14]} Bb4 {[%emt 0:02:56] [#]} 54. Nh4 $1 {[%emt 0:00:33] Threatens to win with fxe6+.} Bd2 $2 {[%emt 0:00:24][%mdl 8192] [#] This move loses the game for Black.} (54... Bc3 $16 55. Ng6 Bd2 56. Nh8+ Ke7) 55. fxe6+ $1 $18 {[%emt 0:00:10]} Kxe6 {[%emt 0:00:19]} 56. Nf5 {[%emt 0:00:07]} Kf7 {[%emt 0:02:53]} 57. Kd5 {[%emt 0:00:09]} g6 {[%emt 0:00:04]} 58. e6+ {[%emt 0:03:10] Weighted Error Value: White=0.08 (flawless) /Black=0.24 (precise)} 1-0

[Event "Marcel Invitational Chess-ch 2022"]
[Site "Dhaka"]
[Date "2022.04.20"]
[Round "2.3"]
[White "Abu, Hanif"]
[Black "Islam, Khandaker Aminul"]
[Result "1/2-1/2"]
[ECO "A49"]
[WhiteElo "2023"]
[BlackElo "2153"]
[Annotator "TA"]
[PlyCount "93"]
[EventDate "2022.04.18"]
[EventCountry "BAN"]
[SourceTitle "playchess.com"]
[Source "ChessBase"]
[SourceQuality "1"]
[TimeControl "5400+30"]

{[%evp 9,93,22,8,-4,12,-7,0,0,0,-22,-12,-34,-25,-41,-29,-43,0,-26,-20,-14,-21,-15,-3,-9,0,-6,0,0,0,-9,0,0,0,-24,0,0,0,0,0,-44,-45,-40,-52,-56,-52,-53,-52,-37,-25,-25,-29,-30,-30,-30,-28,-101,-100,-102,-27,-28,-10,-12,-8,-137,-145,-307,-307,-307,-307,-307,-307,-286,-274,-533,-504,-427,-409,-1342,-1137,-930,-899,-1188,-1168,-1108,-1108,-741]} 1. d4 {[%emt 1:31:00]} Nf6 {[%emt 0:00:08]} 2. Nf3 {[%emt 0:47:37]} g6 {[%emt 0:00:15]} 3. g3 {[%emt 0:01:11]} Bg7 {[%emt 0:00:07]} 4. Bg2 {[%emt 0:00:08]} d6 {[%emt 0:01:53]} 5. c3 {[%emt 0:02:30]} Nbd7 {[%emt 0:01:59]} 6. Na3 {[%emt 0:05:05] [#] A49: 1 d4 Nf6 2 Nf3 g6 3 g3: Anti-King's Indian systems.} c5 $146 {[%emt 0:00:57]} ({Predecessor:} 6... O-O 7. Nc4 c6 8. b4 Ne4 9. Bb2 d5 10. Na5 c5 11. Nd2 cxb4 12. cxb4 Ndf6 {½-½ (55) Dmitriev,I (2401)-Semenova,I (2236) Voronezh 2011}) 7. Nc2 {[%emt 0:00:37]} Rb8 {[%emt 0:00:21]} 8. a4 {[%emt 0:00:17] The position is equal.} b6 {[%emt 0:00:18]} 9. O-O {[%emt 0:41:13]} Bb7 {[%emt 0:00:21]} 10. Re1 {[%emt 0:00:14]} O-O {[%emt 0:01:06]} 11. Nh4 {[%emt 0:03:22]} Bxg2 {[%emt 0:01:06]} 12. Nxg2 {[%emt 0:00:33]} Qc7 {[%emt 1:27:59]} 13. d5 {[%emt 0:01:12]} a6 {[%emt 0:00:54]} 14. e4 {[%emt 0:37:58]} b5 {[%emt 0:02:01]} 15. axb5 {[%emt 0:00:17]} axb5 {[%emt 0:00:02]} 16. Qe2 {[%emt 0:01:42]} Rfe8 {[%emt 0:00:40]} 17. f3 {[%emt 0:04:43]} Rb7 {[%emt 0:03:25]} 18. Bd2 {[%emt 0:01:13]} Ne5 {[%emt 0:06:12]} 19. Kh1 {[%emt 0:03:38]} Reb8 {[%emt 0:04:10]} 20. Nge3 {[%emt 0:00:44]} Qc8 {[%emt 0:01:23]} 21. Kg2 {[%emt 0:00:32]} h5 {[%emt 0:00:54]} 22. Ra5 {[%emt 0:01:34]} e6 {[%emt 0:04:38]} 23. dxe6 $1 {[%emt 0:00:56]} Qxe6 {[%emt 0:00:43]} 24. Rea1 {[%emt 0:00:25]} d5 {[%emt 0:03:29]} 25. exd5 {[%emt 0:01:34]} Nxd5 {[%emt 0:00:16]} 26. Nxd5 {[%emt 0:00:18]} Qxd5 {[%emt 0:55:35]} 27. Bf4 {[%emt 0:00:10]} Re8 {[%emt 0:11:04]} 28. Ra8 {[%emt 0:01:15]} Rbe7 {[%emt 0:03:45]} 29. Rxe8+ {[%emt 0:00:18]} Rxe8 {[%emt 0:00:07]} 30. Re1 {[%emt 0:00:21]} Re6 {[%emt 0:01:25]} 31. Bxe5 {[%emt 0:02:12]} Rxe5 {[%emt 0:01:15]} 32. Qf2 {[%emt 0:00:16]} (32. Qxb5 $11 Qd2+ 33. Kf1) 32... Rxe1 $17 {[%emt 0:02:03]} 33. Nxe1 {[%emt 0:00:46]} Qd1 {[%emt 0:03:21]} (33... b4 $17 34. cxb4 cxb4) 34. Kf1 $11 {[%emt 0:24:35]} c4 {[%emt 0:36:34]} 35. Qe2 {[%emt 0:01:29]} Qb3 {[%emt 0:01:01]} 36. Qc2 {[%emt 0:01:52] [#]} ({Reject} 36. Qe8+ Kh7 37. Qe2 (37. Qxf7 $2 Qxb2 38. g4 hxg4 $19) 37... b4 38. cxb4 Bxb2 $17) (36. Ng2 $11 {keeps the balance.}) 36... b4 $1 $17 {[%emt 0:05:09]} 37. Qc1 {[%emt 0:21:49] White does not recover from this.} ({Avoid the trap} 37. Qxb3 $2 cxb3 38. cxb4 Bxb2) (37. cxb4 $17 {was called for.} Qxb4 38. Ng2) 37... bxc3 $19 {[%emt 0:00:23]} 38. bxc3 {[%emt 0:00:04]} Bxc3 {[%emt 0:00:36]} 39. Nc2 {[%emt 0:00:32]} Bf6 {[%emt 0:01:55]} 40. Qd1 {[%emt 0:16:59]} h4 {[%emt 0:01:27][%cal Bh5h4,Bh4h3][%mdl 32] [#] White must now prevent ...h3.} 41. Ke2 $2 {[%emt 0:00:34]} (41. Kg2) 41... h3 {[%emt 0:01:24]} 42. Ne3 {[%emt 0:17:01]} Qb2+ {[%emt 0:04:00]} 43. Qc2 {[%emt 0:00:16]} (43. Nc2 $142) 43... c3 {[%emt 0:00:16] ( -> ...Bd4). Black is clearly winning.} 44. Kd1 {[%emt 0:01:10]} Bd4 {[%emt 0:00:51]} 45. Nd5 {[%emt 0:01:52]} Qa1+ {[%emt 0:01:07]} 46. Ke2 {[%emt 0:00:26]} Qa6+ {[%emt 0:01:43]} 47. Ke1 {[%emt 0:00:21][%mdl 32768] Weighted Error Value: White=0.41/Black=0.09 (flawless) . An unexpected result.} 1/2-1/2

[Event "Marcel Invitational Chess-ch 2022"]
[Site "Dhaka"]
[Date "2022.04.20"]
[Round "2.5"]
[White "Md, Sariatullah"]
[Black "Ahmed, Sheikh Nasir"]
[Result "0-1"]
[ECO "A36"]
[WhiteElo "1990"]
[BlackElo "2168"]
[Annotator "TA"]
[PlyCount "76"]
[EventDate "2022.04.18"]
[EventCountry "BAN"]
[SourceTitle "playchess.com"]
[Source "ChessBase"]
[SourceQuality "1"]
[TimeControl "5400+30"]

{[%evp 17,76,-8,0,-10,0,-21,-18,-17,-5,-3,0,0,0,-6,0,0,9,0,0,-6,-9,-9,0,-83,-84,-81,-72,-70,-72,-73,-73,-108,-99,-178,-137,-158,-158,-278,-265,-277,-281,-292,-308,-278,-247,-247,-245,-377,-218,-227,-222,-246,-201,-706,-706,-795,-789,-763,-747,-904,-904]} 1. e4 {[%emt 0:00:04]} c5 {[%emt 0:00:17]} 2. c4 {[%emt 0:00:05]} Nc6 {[%emt 0:00:45]} 3. Nc3 {[%emt 0:00:05]} g6 {[%emt 0:00:35]} 4. g3 {[%emt 0:00:39]} Bg7 {[%emt 0:00:08]} 5. Bg2 {[%emt 0:00:05]} e6 {[%emt 0:02:12]} 6. Nge2 {[%emt 0:00:11]} Nd4 {[%emt 0:02:36]} 7. O-O {[%emt 0:00:59]} Ne7 {[%emt 0:00:11][%cal Bg8e7,Be7c6,Bc6d4,Bd4e2][%mdl 32]} 8. d3 {[%emt 0:02:56]} O-O {[%emt 0:01:26]} 9. Be3 {[%emt 0:00:22]} d6 {[%emt 0:02:08]} 10. f4 {[%emt 0:02:50] A36: Symmetrical English vs ...g6: 4 Bg2 Bg7.} Rb8 {[%emt 0:02:19]} 11. Bf2 {[%emt 0:00:54]} Nec6 {[%emt 1:23:23]} 12. Nxd4 {[%emt 0:06:32] The position is equal.} Nxd4 {[%emt 0:00:23]} 13. Ne2 {[%emt 0:00:12] [#]} Nxe2+ $146 {[%emt 0:06:50]} ({Predecessor:} 13... b6 14. Nxd4 cxd4 15. b4 Bb7 16. Qb3 Qd7 17. Qb2 e5 18. Qb3 Kh8 19. a4 f5 {½-½ (48) Martinez Miura,E (1660)-Cruz Gonzalez,A (1817) Madrid 2017}) 14. Qxe2 {[%emt 0:01:01]} b5 {[%emt 0:01:26]} 15. Rab1 {[%emt 0:00:36]} Qa5 {[%emt 0:28:01]} 16. b3 {[%emt 0:00:50]} Rd8 {[%emt 0:00:35]} 17. Rbd1 {[%emt 0:00:40]} Qb6 {[%emt 0:02:01]} 18. Be3 {[%emt 0:00:30]} a5 {[%emt 0:01:21]} 19. Qf2 {[%emt 0:02:03]} Qc7 {[%emt 0:08:41]} 20. d4 {[%emt 0:02:23]} (20. e5 $11 {remains equal.}) 20... bxc4 $17 {[%emt 0:01:24] White is now going downhill.} 21. bxc4 {[%emt 0:01:00]} cxd4 {[%emt 0:01:58]} 22. Bxd4 {[%emt 0:00:07]} Qxc4 {[%emt 0:01:36]} 23. Bxg7 {[%emt 0:00:36]} Kxg7 {[%emt 0:00:02]} 24. Rc1 {[%emt 0:04:56]} Qb4 {[%emt 0:01:25]} 25. Qf3 {[%emt 0:06:41]} (25. Rc2 $17 {was worth a try.}) 25... Bb7 {[%emt 0:05:37]} 26. Rfd1 {[%emt 0:03:18]} d5 {[%emt 0:04:07][%cal Bd6d5,Bd5e4][%mdl 32]} 27. f5 {[%emt 0:00:27]} (27. Rb1 $17 {was called for.} dxe4 28. Rxb4 exf3 29. Rxd8 Rxd8 30. Rxb7 fxg2 31. Rb2) 27... dxe4 $19 {[%emt 0:00:55]} 28. f6+ {[%emt 0:00:17]} Kg8 {[%emt 0:00:15]} 29. Qf4 {[%emt 0:00:27]} Rxd1+ {[%emt 0:09:20]} 30. Rxd1 {[%emt 0:00:09]} Qb6+ {[%emt 0:00:07]} 31. Kh1 {[%emt 0:00:30]} Rd8 {[%emt 0:00:08]} 32. Rc1 {[%emt 0:02:10]} (32. Rf1 $142 Qb4 33. a3) 32... Qd6 {[%emt 0:00:24]} (32... Qb2 $142 {[%cal Oe4e3] ( -> ...e3!)} 33. Qc7 {[#]} Qd2 $1) 33. Qh6 {[%emt 1:02:25][%csl Gf6][%cal Rh6g7] [#]} Qf8 {[%emt 0:00:06] Against Qg7+} 34. Qf4 {[%emt 0:00:36]} h6 {[%emt 0:04:47] White must now prevent ...g5.} 35. Bxe4 $2 {[%emt 0:00:38]} (35. h4) 35... Rd4 {[%emt 0:03:22] Black is clearly winning.} 36. Bxb7 {[%emt 0:03:47]} Rxf4 {[%emt 0:00:03]} 37. gxf4 {[%emt 0:00:13]} Qd6 {[%emt 0:00:50]} 38. f5 {[%emt 0:00:20]} exf5 {[%emt 0:01:54] Weighted Error Value: White=0.64/Black=0.12 (very precise)} 0-1

[Event "Marcel Invitational Chess-ch 2022"]
[Site "Dhaka"]
[Date "2022.04.20"]
[Round "2.6"]
[White "Manon, Reja Neer"]
[Black "ariful, Amin"]
[Result "1-0"]
[ECO "B00"]
[WhiteElo "2209"]
[BlackElo "2014"]
[Annotator "TA"]
[PlyCount "73"]
[EventDate "2022.04.18"]
[EventCountry "BAN"]
[SourceTitle "playchess.com"]
[Source "ChessBase"]
[SourceQuality "1"]
[TimeControl "5400+30"]

{[%evp 9,73,25,31,36,39,0,52,39,32,37,54,49,111,75,72,64,80,68,100,42,35,0,0,0,27,0,40,-29,22,31,22,38,39,25,61,-29,202,200,195,208,328,293,293,278,272,274,581,577,644,637,776,761,856,850,1075,1182,1751,1802,29980,29981,29985,29986,29983,29984,29989,1583]} 1. e4 {[%emt 0:00:52]} e6 {[%emt 0:04:24]} 2. d4 {[%emt 0:00:11]} b6 {[%emt 0:00:14]} 3. Bd3 {[%emt 0:01:28]} Bb7 {[%emt 0:00:35]} 4. Be3 {[%emt 0:02:34]} Nf6 {[%emt 0:05:23]} 5. Nd2 {[%emt 0:00:13]} Be7 {[%emt 0:01:58]} 6. Ne2 {[%emt 0:03:04] B00: Queen's Fianchetto Defence, Nimzowitsch Defence.} d6 {[%emt 0:03:21] [#]} 7. c4 $146 {[%emt 0:02:28]} ({Predecessor:} 7. f3 Nbd7 8. O-O O-O 9. Qe1 c5 10. c3 Rc8 11. Rc1 cxd4 12. cxd4 Rxc1 13. Qxc1 {0-1 (69) Rigo,M (1882)-Rigo,G (2063) Arco 2007}) 7... Nbd7 {[%emt 0:00:43]} (7... Ng4 $11) 8. h3 {[%emt 0:01:21] White is slightly better.} c5 {[%emt 0:05:48]} 9. d5 {[%emt 0:00:53]} O-O {[%emt 0:04:04]} 10. O-O {[%emt 0:03:39]} e5 {[%emt 0:05:40]} ({Black should try} 10... Ne5 $14 11. Qb1 Nxd3 12. Qxd3 a6) 11. g4 {[%emt 0:04:24]} h6 {[%emt 0:00:39]} 12. Ng3 {[%emt 0:00:20]} Nh7 {[%emt 0:00:16]} 13. Nf5 {[%emt 0:01:20]} Re8 {[%emt 0:03:50]} 14. Kg2 {[%emt 0:02:51] &Bianco is much more active. The black rooks are badly placed.} (14. Bc2 $16) 14... Ndf8 $14 {[%emt 0:01:51]} 15. Rh1 {[%emt 1:12:22]} Ng6 $1 {[%emt 0:00:54] Against h4} 16. Nf3 {[%emt 1:04:15]} Bc8 {[%emt 0:58:50]} 17. Bc2 {[%emt 0:07:33]} ({Don't go for} 17. Bxh6 $2 gxh6 18. Nxh6+ Kg7 19. Nf5+ Bxf5 20. gxf5 Nf4+ 21. Kf1 Rh8 $19) 17... Bd7 {[%emt 0:06:08]} 18. Ba4 {[%emt 0:08:45]} (18. Qd2 $14) 18... a6 {[%emt 0:10:19]} (18... Bxa4 $142 19. Qxa4 Nf4+ 20. Bxf4 exf4) 19. Bxd7 $11 {[%emt 0:01:42]} Qxd7 {[%emt 0:00:24]} 20. h4 {[%emt 0:00:02]} Bf8 $1 {[%emt 0:06:50]} 21. g5 $36 {[%emt 0:06:35][%cal Rg5h6,Bg4g5,Bg5g6][%mdl 2080] White has some pressure.} h5 {[%emt 0:01:08]} 22. Nd2 {[%emt 0:20:16]} (22. Qd2 $14) 22... Ne7 $2 {[%emt 0:23:33] [#] Black cannot hold the game after this.} (22... Nf4+ $1 $11 {and Black stays safe.} 23. Kf1 (23. Bxf4 exf4 24. Qxh5 g6 $15) 23... g6) 23. Nxe7+ $18 {[%emt 0:00:28]} ({Weaker is} 23. Qxh5 Nxf5 24. exf5 Qxf5 $14) 23... Bxe7 {[%emt 0:00:29]} 24. Qxh5 {[%emt 0:00:08]} f5 {[%emt 0:01:56]} (24... b5 {was called for.} 25. Raf1 Nf8) 25. g6 {[%emt 0:02:36]} Nf6 {[%emt 0:01:25]} 26. Qxf5 {[%emt 0:00:02]} Qxf5 {[%emt 0:00:05]} 27. exf5 {[%emt 0:00:08] Hoping for h5.} Nh5 $2 {[%emt 0:00:09]} (27... Rf8 28. Bg5 Rae8) 28. Bg5 {[%emt 0:00:28]} Ra7 {[%emt 0:01:19]} 29. Kf3 {[%emt 0:01:33]} Rf8 {[%emt 0:00:39]} 30. Kg4 {[%emt 0:00:17]} Nf6+ {[%emt 0:02:40]} 31. Bxf6 {[%emt 0:00:22]} Bxf6 {[%emt 0:00:22]} 32. Ne4 {[%emt 0:00:08]} Be7 {[%emt 0:00:00]} 33. h5 {[%emt 0:00:12]} b5 {[%emt 0:07:04]} 34. h6 {[%emt 0:00:31] White mates.} Bf6 {[%emt 0:02:46]} 35. hxg7 {[%emt 0:00:10]} Bxg7 {[%emt 0:00:06]} 36. Rh7 {[%emt 0:00:37]} bxc4 {[%emt 0:00:24]} 37. f6 {[%emt 0:19:45] Weighted Error Value: White=0.21 (precise) /Black=0.77} (37. Rah1 $142 Raa8 38. Kg5 Rxf5+ 39. Kxf5 Rf8+ 40. Kg5 Rf3 {[#]} 41. Rxg7+ $1 {[%mdl 512]} Kxg7 42. Rh7+ Kg8 43. Nf6+ Rxf6 44. Kxf6 a5 45. Ra7 Kh8 46. Ra8#) 1-0

[Event "Marcel Invitational Chess-ch 2022"]
[Site "Dhaka"]
[Date "2022.04.21"]
[Round "3.1"]
[White "Mohammad, Javed"]
[Black "Anata, Choudhury"]
[Result "1/2-1/2"]
[ECO "E11"]
[WhiteElo "2046"]
[BlackElo "2170"]
[Annotator "TA"]
[PlyCount "75"]
[EventDate "2022.04.18"]
[EventCountry "BAN"]
[SourceTitle "playchess.com"]
[Source "ChessBase"]
[SourceQuality "1"]
[TimeControl "5400+30"]

{[%evp 12,75,4,12,16,5,8,0,0,-2,0,0,0,0,0,-42,18,20,15,6,10,8,9,0,68,8,12,6,21,12,14,16,15,0,7,0,0,0,52,29,29,-5,-8,-8,-9,-60,-16,-35,-17,-17,-17,-17,-17,-20,-15,-20,-20,-603,-602,-603,0,0,0,0,0,-3]} 1. d4 {[%emt 0:00:21]} Nf6 {[%emt 0:00:24]} 2. c4 {[%emt 0:00:16]} e6 {[%emt 0:00:10]} 3. Nf3 {[%emt 0:00:59]} d5 {[%emt 0:00:15]} 4. g3 {[%emt 0:00:45]} Bb4+ {[%emt 0:00:23]} 5. Bd2 {[%emt 0:00:58]} a5 {[%emt 0:00:15]} 6. Bg2 {[%emt 0:01:12]} O-O {[%emt 0:00:24]} 7. O-O {[%emt 0:00:40] 7.Qc2 injects fresh life into this line.} dxc4 {[%emt 0:00:27] E11: Bogo-Indian.} 8. Qc2 {[%emt 0:01:04]} Bxd2 {[%emt 0:00:22]} 9. Nbxd2 {[%emt 0:02:39]} b5 $1 {[%emt 0:00:37]} 10. a4 {[%emt 0:00:22]} c6 {[%emt 0:00:14]} 11. b3 {[%emt 0:00:54]} cxb3 {[%emt 0:01:16]} 12. Nxb3 {[%emt 0:00:36]} Ba6 {[%emt 0:00:36]} 13. Nc5 {[%emt 0:04:02]} bxa4 {[%emt 0:14:26]} (13... b4 $15) 14. Nxa6 $11 {[%emt 0:04:15]} ({Much weaker is} 14. Rxa4 Bb5 15. Ra3 Na6 $11) 14... Rxa6 {[%emt 0:01:42]} 15. Rxa4 {[%emt 0:00:59]} Nbd7 {[%emt 0:01:05]} 16. Rfa1 {[%emt 0:00:48]} Qb6 {[%emt 0:03:43] [#]} 17. e4 $146 {[%emt 0:08:02]} ({Predecessor:} 17. Nd2 Rfa8 18. e3 {½-½ (18) Starostits,I (2457)-Valenzuela Gomez,F (2378) Seville 2021}) 17... e5 {[%emt 0:06:35]} (17... Rb8 $11) 18. Bh3 {[%emt 0:04:47]} (18. Nxe5 $14 Nxe5 19. dxe5) 18... Re8 $1 {[%emt 0:10:06]} 19. Rb1 {[%emt 0:04:32]} Qa7 {[%emt 0:02:44]} 20. Bf1 {[%emt 0:05:23] aiming for Nxe5.} (20. Nxe5 {is more complex.} Nxe5 21. dxe5 Rxe5 22. Qd3) 20... Rb6 {[%emt 0:02:30]} 21. Rba1 {[%emt 0:00:50]} exd4 {[%emt 0:07:47]} 22. Nxd4 {[%emt 0:06:24]} c5 {[%emt 0:04:57]} ({Don't do} 22... Rxe4 {[#]} 23. Rxa5 $1 Qc7 24. Ra7 $1 $16) 23. Nf5 {[%emt 0:03:01]} g6 {[%emt 0:10:27]} 24. Ne3 {[%emt 0:01:15]} Qc7 {[%emt 0:08:59]} (24... Rb4 $11) 25. Rxa5 $14 {[%emt 0:00:58]} Rb4 {[%emt 0:01:45]} (25... Nxe4 $2 26. Nd5 Qe5 27. Nxb6 Nxb6 28. Re1 $18) 26. Nd5 {[%emt 0:10:57]} Nxd5 {[%emt 0:00:28]} 27. exd5 {[%emt 0:00:02]} Qe5 {[%emt 0:00:29]} 28. Ra7 {[%emt 0:02:28] [#]} (28. Rd1 $11) 28... Rb2 $1 {[%emt 0:05:49]} 29. Qa4 {[%emt 0:08:02]} (29. Qc1 Qf6) 29... Qf5 {[%emt 0:03:05]} 30. Qf4 {[%emt 0:02:31]} Qxf4 {[%emt 0:01:38]} (30... Qxd5 $2 31. Bc4 g5 32. Bxd5 $18) 31. gxf4 {[%emt 0:00:02]} Nf6 {[%emt 0:00:15]} 32. d6 {[%emt 0:00:53] Strongly threatening Bc4.} Rd2 {[%emt 0:01:05]} 33. Bc4 {[%emt 0:01:20]} Rf8 {[%emt 0:00:07]} 34. Rxf7 $2 {[%emt 0:03:32][%mdl 8192]} Rxf7 $19 {[%emt 0:00:45]} 35. Ra7 {[%emt 0:00:10]} Rxd6 $2 {[%emt 0:00:42]} 36. Rxf7 $11 {[%emt 0:00:14] The position is equal.} Nd5 {[%emt 0:01:45]} 37. Rc7 {[%emt 0:03:07]} Kh8 {[%emt 0:00:10][%csl LRc7,LRf4]} 38. Rxc5 {[%emt 0:01:02] Weighted Error Value: White=0.36/Black=0.26 (precise)} 1/2-1/2